bitfinex-derivatives/quotes_ETHF0:USTF0_20260208
["timestamp","ask_amount","ask_price","bid_price","bid_amount"]
[1770513719215,0.88046258,2089.0,2088.2,4.38439749]
[1770513719406,0.88046258,2089.0,2088.1,4.27227286]
[1770513719612,0.88046258,2089.0,2088.2,4.38037975]
[1770513719811,0.88046258,2089.0,2088.1,4.27227286]
[1770513720009,0.88046258,2089.0,2088.2,4.38036928]
[1770513720212,6.60005356,2089.1,2088.3,4.38094841]
[1770513720417,0.8897767,2089.1,2088.4,4.38094841]
[1770513720621,5.71027686,2089.4,2088.5,8.65216213]
[1770513720815,5.71027686,2090.0,2088.9,9.96863667]
[1770513721020,0.88437786,2089.9,2089.1,4.27227286]
[1770513721220,6.59465472,2090.1,2089.2,4.37988927]
[1770513721521,0.88437786,2090.0,2088.9,4.27227286]
[1770513721721,0.88437786,2090.0,2088.9,8.65929983]
[1770513721923,0.89053129,2090.0,2088.9,8.65929983]
[1770513722111,0.87661154,2090.6,2089.4,0.91803113]
[1770513722317,0.87661154,2090.6,2089.4,4.38702697]
[1770513722522,0.87661154,2090.6,2089.3,4.27227286]
[1770513723218,0.87661154,2090.6,2089.3,0.00617212]
[1770513723219,0.88091218,2090.6,2089.3,0.00617212]
[1770513725222,0.85527506,2090.5,2089.3,0.00617212]
[1770513731828,0.8596462,2090.3,2089.3,0.00617212]
[1770513737439,0.86357324,2090.1,2089.3,0.00617212]
[1770513739434,0.86273531,2089.9,2089.3,0.00617212]
[1770513742739,0.91678087,2090.4,2089.3,0.00617212]
[1770513742740,0.86186567,2089.7,2089.3,0.00617212]
[1770513743042,0.86186567,2089.7,2088.9,0.91678087]
[1770513743438,0.86186567,2089.7,2088.7,5.42861373]
[1770513743636,0.86111688,2089.3,2088.3,5.18905373]
[1770513743843,0.86111688,2089.3,2088.4,4.36821359]
[1770513744043,0.86111688,2089.3,2088.3,0.92281471]
[1770513744244,0.86111688,2089.3,2088.3,5.19508757]
[1770513744442,0.86111688,2089.3,2088.4,4.37077132]
[1770513744637,0.86111688,2089.3,2088.3,0.92281471]
[1770513744638,0.86111688,2089.3,2088.5,0.91678087]
[1770513746948,0.86111688,2089.3,2088.3,5.19508757]
[1770513747345,0.86111688,2089.3,2088.3,9.56405627]
[1770513747543,0.86111688,2089.3,2088.4,4.3689687]
[1770513747739,0.86111688,2089.3,2088.3,5.19508757]
[1770513747945,0.86111688,2089.3,2088.4,4.38086639]
[1770513748152,0.86111688,2089.3,2088.5,4.38688433]
[1770513748346,0.86111688,2089.3,2088.3,5.19508757]
[1770513748744,0.86111688,2089.3,2088.3,0.92281471]
[1770513749143,0.86111688,2089.3,2088.3,9.58088109]
[1770513749342,0.86111688,2089.3,2088.4,4.38579352]
[1770513749549,0.86111688,2089.3,2088.3,5.19508757]
[1770513750343,0.86111688,2089.3,2088.3,9.58721713]
[1770513750538,0.86111688,2089.3,2088.4,4.39212956]
[1770513750743,0.86111688,2089.3,2088.3,5.19508757]
[1770513751247,0.86111688,2089.3,2088.3,9.58636493]
[1770513751447,0.86111688,2089.3,2088.4,4.39127736]
[1770513751650,0.86111688,2089.3,2088.3,0.92281471]
[1770513752254,0.86111688,2089.3,2088.3,5.34583852]
[1770513752444,0.86111688,2089.3,2088.4,4.42302381]
[1770513752644,0.86111688,2089.3,2088.3,0.92281471]
[1770513753853,0.86245622,2089.1,2088.3,0.00603384]
[1770513754049,0.86779158,2089.1,2088.3,0.00603384]
[1770513754748,0.862481,2088.9,2088.3,0.00603384]
[1770513755248,0.862481,2088.7,2088.3,0.00603384]
[1770513755452,0.862481,2088.4,2087.5,4.58031488]
[1770513755646,0.86206664,2089.0,2088.2,0.91678087]
[1770513756549,0.86206664,2089.0,2088.2,0.92082144]
[1770513756746,0.86206664,2089.0,2088.4,0.91678087]
[1770513759456,0.86206664,2089.0,2088.6,0.91678087]
[1770513761060,0.86433349,2089.5,2088.8,0.91678087]
[1770513761459,0.86433349,2089.4,2088.6,4.27227286]
[1770513761958,0.86433349,2089.4,2088.6,5.18905373]
[1770513762158,0.87025931,2089.4,2088.6,5.18905373]
[1770513762657,0.87025931,2089.4,2088.6,4.27227286]
[1770513763255,0.86404238,2089.3,2088.6,4.27227286]
[1770513763456,0.86404238,2089.3,2088.4,3.76546276]
[1770513763660,0.86404238,2089.3,2088.4,7.2723632]
[1770513763850,0.86404238,2089.3,2088.4,2.84868189]
[1770513764256,0.86404238,2089.3,2088.4,3.76546276]
[1770513764465,0.86328818,2089.1,2088.3,7.27246597]
[1770513764758,0.86328818,2089.1,2088.4,5.34197709]
[1770513764959,0.86328818,2089.1,2088.4,3.76546276]
[1770513766162,0.86176402,2088.9,2088.2,0.00404057]
[1770513766460,0.86176402,2088.7,2088.2,0.00404057]
[1770513768969,0.91678087,2089.2,2087.8,3.76546276]
[1770513768970,0.86007851,2088.5,2087.8,2.84868189]
[1770513769974,0.86007851,2088.5,2087.8,2.85353769]
[1770513770174,0.86007851,2088.5,2087.8,0.0048558]
[1770513771175,0.86007851,2088.5,2087.8,2.85353769]
[1770513771772,0.86007851,2088.5,2087.8,3.77031856]
[1770513772075,0.86366909,2088.7,2088.0,0.91678087]
[1770513772277,0.86366909,2088.7,2088.0,3.76546276]
[1770513772670,0.86366909,2088.7,2088.2,0.91678087]
[1770513775068,0.86366909,2088.7,2088.1,2.84868189]
[1770513775673,0.86366909,2088.7,2088.1,7.28499344]
[1770513775868,0.86366909,2088.7,2088.1,2.84868189]
[1770513779080,0.86366909,2088.7,2087.9,11.55742874]
[1770513779282,0.86366909,2088.7,2088.0,7.28518501]
[1770513779479,0.86366909,2088.7,2088.0,2.84868189]
[1770513780178,0.86415181,2088.9,2088.0,2.84868189]
[1770513780375,0.86415181,2088.9,2088.3,2.84868189]
[1770513780678,0.86416423,2089.0,2088.3,2.84868189]
[1770513781271,0.86416423,2089.0,2088.1,2.84868189]
[1770513782086,0.86416423,2089.0,2088.0,2.84868189]
[1770513784876,0.86416423,2089.0,2087.9,2.84868189]
[1770513785570,0.86416423,2089.0,2087.8,7.12581055]
[1770513785780,0.86416423,2089.0,2087.8,11.54398675]
[1770513786375,0.86416423,2089.0,2087.9,4.4181762]
[1770513786579,0.86416423,2089.0,2087.8,2.85353769]
[1770513787076,0.86416423,2089.0,2087.8,7.12581055]
[1770513787281,0.86416423,2089.0,2087.8,7.27144349]
[1770513787478,0.86416423,2089.0,2087.9,4.4179058]
[1770513787680,0.86416423,2089.0,2087.8,2.85353769]
[1770513788275,5.71027686,2089.1,2087.8,0.0048558]
[1770513788276,0.86130639,2088.7,2087.8,0.0048558]
[1770513788675,0.85890039,2088.5,2087.4,2.84868189]
[1770513789184,0.85890039,2088.5,2087.3,2.84868189]
[1770513789482,0.85890039,2088.5,2087.3,3.15493179]
[1770513789783,0.85890039,2088.5,2087.3,3.15941683]
[1770513794389,0.86179605,2088.3,2087.3,0.00448504]
[1770513794581,0.86180824,2088.2,2087.1,2.84868189]
[1770513794786,0.86180824,2088.0,2086.9,2.84868189]
[1770513795386,0.86180824,2088.0,2087.0,2.84868189]
[1770513795585,0.86180824,2088.0,2087.1,2.84868189]
[1770513795783,0.86180824,2088.0,2087.1,7.12490103]
[1770513796186,0.86180824,2088.0,2087.2,2.84868189]
[1770513797393,0.86180824,2088.0,2087.1,2.85262817]
[1770513798485,0.86180824,2088.0,2087.1,0.00394628]
[1770513798685,0.86180824,2088.0,2087.1,4.42194084]
[1770513798891,0.86180824,2088.0,2087.1,0.00394628]
[1770513800582,0.86180824,2088.0,2087.1,2.85262817]
[1770513801991,0.86180824,2088.0,2087.1,0.00394628]
[1770513803794,0.84362591,2087.9,2087.1,0.00394628]
[1770513804089,1.08732164,2087.9,2087.1,0.00394628]
[1770513804294,0.84362591,2087.8,2086.4,2.84868189]
[1770513804893,0.84362591,2087.8,2086.4,3.15388637]
[1770513805093,0.84362591,2087.8,2086.4,2.84868189]
[1770513805293,0.84362591,2087.8,2086.4,0.00475495]
[1770513805294,0.84362591,2087.7,2086.4,0.00475495]
[1770513805495,1.08330591,2087.7,2086.4,0.00475495]
[1770513805700,0.84687805,2087.6,2086.4,0.00475495]
[1770513806088,1.08656805,2087.6,2086.4,0.00475495]
[1770513806291,0.84687805,2087.2,2086.4,0.00475495]
[1770513806690,0.84687805,2087.1,2085.8,1.2290669]
[1770513807091,0.84687805,2087.1,2085.6,2.84868189]
[1770513807297,0.84687805,2087.1,2085.5,2.84868189]
[1770513807697,0.84687805,2087.1,2085.5,2.85377591]
[1770513807897,0.84687805,2087.1,2085.5,0.00509402]
[1770513809195,0.85424035,2086.7,2085.4,2.84868189]
[1770513809396,0.85424035,2086.5,2084.9,2.84868189]
[1770513809606,0.85424035,2086.5,2084.8,4.27227286]
[1770513809607,0.85424035,2086.5,2084.8,2.84868189]
[1770513810194,0.85424035,2086.5,2084.9,2.84868189]
[1770513810400,0.85424035,2086.5,2084.8,2.85283964]
[1770513811200,0.85424035,2086.5,2084.8,0.00415775]
[1770513811397,0.85424035,2086.5,2084.8,0.30506741]
[1770513813403,0.85424035,2086.5,2084.8,3.1537493]
[1770513813602,0.85424035,2086.5,2084.9,2.84868189]
[1770513816502,0.85424035,2086.5,2085.0,2.84868189]
[1770513816814,0.85424035,2086.5,2085.3,2.84868189]
[1770513817505,0.84620323,2087.2,2085.3,2.84868189]
[1770513817704,0.84620323,2087.2,2085.4,2.84868189]
[1770513818205,0.84620323,2087.2,2085.5,2.84868189]
[1770513818506,0.84620323,2087.2,2085.4,2.84868189]
[1770513819510,0.84620323,2087.2,2085.5,2.84868189]
[1770513820899,0.84620323,2087.2,2085.4,2.84868189]
[1770513821305,0.84620323,2087.2,2085.5,2.84868189]
[1770513823504,0.84576832,2087.1,2085.1,2.84868189]
[1770513823707,0.84610519,2086.8,2085.1,2.84868189]
[1770513825315,0.84610519,2086.7,2084.9,2.84868189]
[1770513825515,0.84610519,2086.6,2084.8,3.3937593]
[1770513826008,0.84610519,2086.6,2084.9,2.84868189]
[1770513826206,0.84610519,2086.6,2085.0,2.84868189]
[1770513830116,0.84913237,2086.5,2084.9,7.12095475]
[1770513830323,0.84913237,2086.5,2085.0,4.3716025]
[1770513830618,0.84913237,2086.5,2084.9,2.84868189]
[1770513832308,0.84913237,2086.5,2085.0,2.84868189]
[1770513833316,0.84604592,2086.4,2085.1,2.84868189]
[1770513833519,0.84955333,2086.4,2085.1,2.84868189]
[1770513834322,0.84955333,2086.4,2085.2,2.84868189]
[1770513834520,0.84955333,2086.4,2085.3,2.84868189]
[1770513835225,0.84955333,2086.4,2085.4,2.84868189]
[1770513835523,0.84955333,2086.4,2085.5,2.84868189]
[1770513836224,0.84955333,2086.4,2085.5,11.49274803]
[1770513837316,0.84955333,2086.4,2085.6,7.22047517]
[1770513837520,0.84955333,2086.4,2085.5,2.84868189]
[1770513837714,0.84955333,2086.4,2085.5,7.23813899]
[1770513838323,0.84955333,2086.4,2085.7,2.84868189]
[1770513839222,0.84955333,2086.4,2085.5,2.84868189]
[1770513839420,0.84955333,2086.4,2085.5,7.23840723]
[1770513841428,0.84825896,2086.3,2085.2,2.84868189]
[1770513841617,0.84825896,2086.3,2085.1,2.84868189]
[1770513841823,0.84825896,2086.3,2085.0,4.27227286]
[1770513841824,0.84677997,2086.2,2085.0,7.23532989]
[1770513842023,0.84677997,2086.0,2084.9,2.84868189]
[1770513842230,0.84677997,2085.9,2084.8,0.00415775]
[1770513842522,0.84677997,2085.8,2084.8,0.00415775]
[1770513842929,0.84677997,2085.7,2084.8,0.00415775]
[1770513843128,6.55705683,2085.7,2084.8,0.00415775]
[1770513843324,0.84677997,2085.6,2084.8,0.00415775]
[1770513849437,0.86349388,2085.5,2083.9,2.84868189]
[1770513849746,0.863011,2085.4,2084.0,2.84868189]
[1770513850442,0.863011,2085.4,2084.0,0.00417122]
[1770513853148,0.863011,2085.4,2084.1,2.84868189]
[1770513857044,0.863011,2085.4,2084.3,2.84868189]
[1770513857553,0.863011,2085.4,2084.4,2.84868189]
[1770513859249,0.85872793,2086.0,2084.4,2.84868189]
[1770513859550,0.85872793,2085.9,2084.4,2.84868189]
[1770513859751,0.85872793,2085.9,2084.6,2.84868189]
[1770513860652,0.85872793,2085.9,2084.7,2.84868189]
[1770513865454,0.85872793,2085.9,2084.6,2.84868189]
[1770513867249,0.85872793,2085.9,2084.7,2.84868189]
[1770513867653,0.85872793,2085.9,2084.6,2.84868189]
[1770513868350,0.85667846,2085.8,2084.5,2.84868189]
[1770513868654,0.85667846,2085.6,2084.4,2.84868189]
[1770513869259,0.85667846,2085.6,2084.5,2.84868189]
[1770513871444,0.85710043,2085.5,2084.5,2.84868189]
[1770513875561,0.85710043,2085.5,2084.6,2.84868189]
[1770513876054,0.85710043,2085.5,2084.8,2.84868189]
[1770513876857,0.85710043,2085.5,2084.7,2.84868189]
[1770513881464,0.85710043,2085.5,2084.7,7.23696101]
[1770513881961,0.85710043,2085.5,2084.7,2.84868189]
[1770513882359,0.85710043,2085.5,2084.6,4.27227286]
[1770513882558,0.85710043,2085.5,2084.7,7.26413552]
[1770513883663,0.8543906,2085.2,2084.3,2.87212627]
[1770513883860,0.8543906,2085.2,2084.3,7.26512152]
[1770513886269,0.8543906,2085.2,2084.3,2.87212627]
[1770513887363,0.8549564,2085.5,2084.7,0.92061737]
[1770513887563,0.8549564,2085.5,2084.7,3.79274364]
[1770513887766,0.8549564,2085.5,2084.7,8.18361445]
[1770513889570,0.8549564,2085.5,2084.7,7.26299708]
[1770513890473,0.8549564,2085.5,2084.7,2.87212627]
[1770513892374,0.8549564,2085.5,2084.7,7.26205072]
[1770513896777,0.8549564,2085.5,2084.6,2.87212627]
[1770513896976,6.56523326,2085.5,2084.6,7.26545902]
[1770513897175,0.85598444,2085.4,2084.6,7.26545902]
[1770513899982,0.85598444,2085.4,2084.6,4.39333275]
[1770513900179,0.85598444,2085.4,2084.5,7.14512745]
[1770513900379,0.85598444,2085.4,2084.6,4.39213078]
[1770513901082,0.85598444,2085.4,2084.5,2.87285459]
[1770513901283,0.85598444,2085.4,2084.5,7.26118559]
[1770513903380,0.85730925,2085.2,2084.4,2.87285459]
[1770513903585,0.85730925,2085.2,2084.3,2.87285459]
[1770513903885,0.85732405,2085.0,2084.1,2.87285459]
[1770513904085,0.85732405,2085.0,2084.1,7.26120525]
[1770513904486,0.85732405,2085.0,2084.1,2.87285459]
[1770513904688,0.85732405,2085.0,2084.1,7.25805424]
[1770513904883,0.85732405,2085.0,2084.2,2.87285459]
[1770513905083,0.85732405,2085.2,2084.3,11.5303271]
[1770513905476,0.85732405,2085.2,2084.4,4.38519965]
[1770513905681,0.85732405,2085.2,2084.3,7.14512745]
[1770513905878,0.85732405,2085.2,2084.3,11.52814538]
[1770513906084,0.85732405,2085.2,2084.4,7.25587252]
[1770513906380,0.85732405,2085.2,2084.3,7.14512745]
[1770513906578,0.85732405,2085.2,2084.3,11.52784876]
[1770513906777,0.85732405,2085.2,2084.4,2.87285459]
[1770513907189,0.87248515,2085.3,2084.4,2.87285459]
[1770513907489,0.87248515,2085.4,2084.5,7.2555759]
[1770513910593,0.877697,2085.4,2084.5,7.25913568]
[1770513916190,0.877697,2085.4,2084.5,11.53140854]
[1770513917293,0.00521185,2085.4,2084.8,0.92090058]
[1770513917685,0.00521185,2085.4,2084.6,12.44874934]
[1770513917882,0.00521185,2085.4,2084.7,4.38272131]
[1770513918097,0.00521185,2085.4,2084.6,8.06602803]
[1770513918291,0.00521185,2085.4,2084.6,12.43550629]
[1770513919189,0.87172373,2085.4,2084.6,12.43550629]
[1770513919594,0.87172373,2085.4,2084.7,7.24233285]
[1770513919783,0.87172373,2085.4,2084.7,2.87285459]
[1770513919986,0.87172373,2085.4,2084.6,8.06602803]
[1770513920187,0.87172373,2085.4,2084.6,12.43587707]
[1770513920694,0.87172373,2085.4,2084.7,4.36984904]
[1770513920895,0.87172373,2085.4,2084.7,2.87285459]
[1770513922190,0.00521185,2085.4,2084.7,7.2429092]
[1770513922894,0.00521185,2085.4,2084.7,11.51518206]
[1770513923290,0.00521185,2085.4,2084.8,4.37005461]
[1770513923492,0.00521185,2085.4,2084.7,2.87285459]
[1770513923686,0.00521185,2085.4,2084.7,7.2435877]
[1770513923991,0.00521185,2085.4,2084.7,11.51586056]
[1770513924196,0.00521185,2085.4,2084.8,4.37073311]
[1770513924395,0.86881406,2085.4,2084.7,7.14512745]
[1770513924600,0.86881406,2085.4,2084.7,11.51567943]
[1770513924993,0.86881406,2085.4,2084.8,4.37055198]
[1770513925198,0.86881406,2085.4,2084.7,2.87285459]
[1770513925398,0.86881406,2085.4,2084.7,7.24086711]
[1770513935419,0.86881406,2085.4,2084.7,11.51313997]
[1770513936319,0.86881406,2085.4,2084.8,7.24086711]
[1770513936616,0.86881406,2085.4,2084.8,2.87285459]
[1770513937213,0.86881406,2085.4,2084.8,7.24269257]
[1770513939221,0.86881406,2085.4,2084.8,4.36983798]
[1770513939518,0.86881406,2085.4,2084.7,7.14512745]
[1770513939719,0.86881406,2085.4,2084.8,4.36955867]
[1770513940020,0.86881406,2085.4,2084.7,7.14512745]
[1770513940317,0.86881406,2085.4,2084.8,4.36942841]
[1770513940720,0.00521185,2085.4,2084.8,7.242283]
[1770513941711,7.14905889,2086.1,2085.1,2.87285459]
[1770513941915,0.85593049,2086.1,2085.4,2.87285459]
[1770513942114,0.85593049,2086.1,2085.4,7.242283]
[1770513942321,0.85593049,2086.1,2085.2,2.87285459]
[1770513942519,0.85593049,2085.6,2084.9,2.87285459]
[1770513942719,0.86064515,2085.6,2084.7,2.87285459]
[1770513943821,0.86064515,2085.6,2084.7,7.28507336]
[1770513951529,0.86064515,2085.6,2084.8,7.28507336]
[1770513951732,0.86064515,2085.6,2084.9,7.28507336]
[1770513952125,0.85808893,2085.5,2084.9,7.28507336]
[1770513952431,0.85808893,2085.5,2084.7,2.87285459]
[1770513952632,0.85808893,2085.5,2084.7,7.28990924]
[1770513959438,0.85808893,2085.5,2084.7,11.5621821]
[1770513959839,0.85808893,2085.5,2084.8,4.41705465]
[1770513960041,0.85808893,2085.5,2084.7,2.87285459]
[1770513960242,0.85808893,2085.5,2084.7,7.28548901]
[1770513961439,0.85808893,2085.5,2084.7,11.55776187]
[1770513962947,0.85808893,2085.5,2084.8,4.41263442]
[1770513963143,0.85808893,2085.5,2084.7,7.14512745]
[1770513963342,0.85808893,2085.5,2084.7,11.55902318]
[1770513964541,0.85808893,2085.5,2084.8,2.87285459]
[1770513965136,0.85808893,2085.5,2084.7,7.14512745]
[1770513965341,0.85808893,2085.5,2084.7,11.55932483]
[1770513965945,0.85808893,2085.5,2084.8,7.28705197]
[1770513966147,0.85808893,2085.5,2084.7,7.14512745]
[1770513966348,0.85808893,2085.5,2084.8,2.87285459]
[1770513966749,0.85808893,2085.5,2084.7,7.14512745]
[1770513966942,0.85808893,2085.5,2084.7,11.55995996]
[1770513969147,0.85808893,2085.5,2084.7,2.87285459]
[1770513971653,0.85808893,2085.5,2084.6,7.14512745]
[1770513971852,0.85808893,2085.5,2084.6,11.56129383]
[1770513972250,0.8558666,2085.4,2084.7,7.28902097]
[1770513972554,0.8558666,2085.4,2084.8,4.41616638]
[1770513974451,0.8558666,2085.4,2084.7,2.86652788]
[1770513974652,0.8558666,2085.4,2084.8,4.42329341]
[1770513974956,0.8558666,2085.4,2084.7,2.86652788]
[1770513978361,0.8558666,2085.4,2084.7,7.28851763]
[1770513982764,0.85653357,2085.3,2084.6,2.86652788]
[1770513982964,0.85653357,2085.3,2084.6,4.42119127]
[1770513983658,0.85653357,2085.2,2084.6,4.42119127]
[1770513984164,0.85653357,2085.2,2084.6,2.86652788]
[1770513984564,0.85653357,2085.2,2084.7,4.41927723]
[1770513985064,0.85653357,2085.2,2084.6,2.86652788]
[1770513988469,0.85925948,2085.1,2084.6,7.28621552]
[1770513989169,0.85925948,2084.9,2084.5,0.00355978]
[1770513995569,0.92109921,2085.2,2084.2,2.86652788]
[1770513995570,0.85741364,2084.7,2084.2,2.86652788]
[1770513995765,0.85741364,2084.7,2084.1,7.27779632]
[1770513996069,0.85741364,2084.7,2084.2,4.41157742]
[1770513996271,0.85741364,2084.7,2084.1,2.86652788]
[1770513996472,0.85741364,2084.7,2084.1,7.28208688]
[1770513997858,0.85929039,2085.1,2084.2,3.78762709]
[1770513998567,0.85929039,2085.1,2084.2,0.92109921]
[1770513998867,0.85929039,2085.1,2084.2,3.78762709]
[1770513999058,0.85929039,2085.1,2084.2,0.92109921]
[1770514000064,0.86041659,2084.6,2084.1,7.27760998]
[1770514000260,0.86041659,2084.6,2084.1,0.0046929]
[1770514001266,0.86041659,2084.4,2084.1,0.0046929]
[1770514001465,0.86041659,2084.4,2083.7,2.86652788]
[1770514001765,0.85719112,2083.8,2083.0,2.86652788]
[1770514001961,0.85719112,2083.8,2083.0,3.78762709]
[1770514002161,0.85719112,2083.8,2083.1,2.86652788]
[1770514002367,0.85719112,2083.8,2083.0,2.86652788]
[1770514002568,0.85719112,2083.6,2083.0,0.00578252]
[1770514003966,0.86806743,2083.8,2083.2,0.92109921]
[1770514004170,0.86279795,2084.2,2083.4,0.92109921]
[1770514005072,0.86279795,2084.2,2083.3,2.86652788]
[1770514005273,0.86765848,2084.2,2083.3,2.86652788]
[1770514006276,0.86765848,2084.2,2083.2,8.05989995]
[1770514007779,0.86765848,2084.2,2083.3,4.3923079]
[1770514007980,0.86765848,2084.2,2083.2,3.78762709]
[1770514008176,0.86765848,2084.2,2083.2,8.1719775]
[1770514008480,0.86765848,2084.2,2083.5,0.92109921]
[1770514009175,0.8623331,2084.0,2083.2,2.86652788]
[1770514010876,0.8623331,2084.0,2083.3,0.92109921]
[1770514014391,0.86844282,2084.2,2083.5,0.92109921]
[1770514014691,0.86844282,2084.2,2083.3,0.92109921]
[1770514015293,0.86358229,2083.6,2083.0,0.00578252]
[1770514017184,0.86358229,2083.6,2083.0,0.00051304]
[1770514020197,0.86274451,2083.4,2083.0,0.00051304]
[1770514020394,0.86274451,2083.4,2082.7,0.30235088]
[1770514020696,0.86274451,2083.4,2082.5,2.86652788]
[1770514021093,0.86274451,2083.4,2082.4,3.78762709]
[1770514021496,0.86274451,2083.4,2082.4,3.79203666]
[1770514021691,0.86274451,2083.4,2082.6,0.92109921]
[1770514024096,0.86230935,2083.6,2083.0,0.92109921]
[1770514024789,0.85566482,2083.7,2082.7,2.86652788]
[1770514024993,0.85566482,2083.7,2083.0,0.92109921]
[1770514025394,0.85566482,2083.4,2082.7,2.86652788]
[1770514025698,0.85566482,2083.4,2082.5,3.78762709]
[1770514026496,0.85566482,2083.4,2082.5,0.92109921]
[1770514026890,0.2401,2084.1,2082.9,0.92109921]
[1770514026891,0.84972399,2083.9,2082.9,0.92109921]
[1770514027495,0.84972399,2083.9,2082.6,3.17656293]
[1770514027900,0.84972399,2083.9,2082.7,2.86652788]
[1770514030005,0.84972399,2083.9,2082.8,2.86652788]
[1770514030704,0.84972399,2083.9,2082.7,4.27227286]
[1770514030705,0.84972399,2083.9,2082.7,2.86652788]
[1770514031306,0.84972399,2083.9,2082.8,2.86652788]
[1770514032707,0.84972399,2083.9,2082.8,7.2558132]
[1770514032908,0.84972399,2083.9,2082.7,2.86652788]
[1770514038513,0.84972399,2083.9,2082.7,7.13880074]
[1770514038704,0.84972399,2083.9,2082.7,11.52809624]
[1770514038905,0.84972399,2083.9,2082.8,4.3892955]
[1770514039101,0.84972399,2083.9,2082.7,7.13880074]
[1770514039312,0.86222179,2083.8,2082.8,2.86652788]
[1770514042313,0.86222179,2083.8,2082.8,7.2573866]
[1770514043310,0.86222179,2083.8,2082.9,7.2573866]
[1770514044315,0.86381431,2083.7,2082.9,2.86652788]
[1770514045408,0.86381431,2083.7,2083.0,4.4046867]
[1770514046613,0.86381431,2083.7,2082.9,2.86652788]
[1770514047210,0.86381431,2083.7,2083.0,4.4037308]
[1770514047410,0.86381431,2083.7,2082.9,2.86652788]
[1770514047605,0.86381431,2083.7,2078.4,78.358162]
[1770514047606,0.86223049,2083.4,2082.5,4.27227286]
[1770514047812,0.86223049,2083.4,2082.6,4.40556497]
[1770514048112,0.86223049,2083.4,2082.5,4.27227286]
[1770514048308,0.86223049,2083.4,2082.6,4.40437755]
[1770514050214,0.86223049,2083.4,2082.6,4.70991162]
[1770514051013,0.86223049,2083.4,2082.6,0.30553407]
[1770514051214,0.86223049,2083.4,2082.6,4.39337234]
[1770514051409,0.86223049,2083.4,2082.7,4.38735892]
[1770514051615,0.86223049,2083.4,2082.8,4.38735892]
[1770514051818,5.75141902,2083.8,2082.9,4.38735892]
[1770514051819,0.85802823,2083.8,2082.9,4.38735892]
[1770514052013,0.85802823,2083.8,2083.0,4.38735892]
[1770514057817,0.86023467,2084.1,2083.1,4.38735892]
[1770514058114,0.86023467,2084.1,2083.1,8.65963178]
[1770514060316,0.86023467,2084.1,2083.2,8.65963178]
[1770514063219,0.86023467,2084.1,2083.3,4.38735892]
[1770514063419,0.86023467,2084.1,2083.2,4.27227286]
[1770514064016,0.86023467,2084.1,2083.2,8.64701555]
[1770514064216,0.86023467,2084.1,2083.3,4.37474269]
[1770514064416,0.00486053,2084.2,2083.2,5.19492811]
[1770514064723,0.00486053,2084.2,2083.4,4.27227286]
[1770514064923,0.86335985,2084.2,2083.4,4.27227286]
[1770514065323,0.86335985,2084.2,2083.5,4.37294826]
[1770514065525,0.86335985,2084.2,2083.3,4.27227286]
[1770514065725,0.86335985,2084.2,2083.3,8.64271112]
[1770514066024,0.00486053,2084.2,2083.3,8.64271112]
[1770514066224,0.00486053,2084.2,2083.4,4.37043826]
[1770514066425,0.00486053,2084.2,2083.5,4.37043826]
[1770514066620,0.00486053,2084.2,2083.3,4.27227286]
[1770514067225,0.00486053,2084.2,2083.3,8.64115902]
[1770514067424,0.8631956,2084.2,2083.4,4.36888616]
[1770514067622,0.8631956,2084.2,2083.3,4.27227286]
[1770514068222,0.8631956,2084.2,2083.3,8.64005919]
[1770514068421,0.8631956,2084.2,2083.4,4.36778633]
[1770514068620,0.8631956,2084.2,2083.3,4.27227286]
[1770514069220,0.8631956,2084.2,2083.3,8.63941322]
[1770514069424,0.8631956,2084.2,2083.4,4.36714036]
[1770514069725,0.00486053,2084.2,2083.3,4.27227286]
[1770514070024,0.86215538,2084.2,2083.3,4.27227286]
[1770514071926,0.00486053,2084.2,2083.3,4.27227286]
[1770514072126,0.86279446,2084.2,2083.3,4.27227286]
[1770514073525,0.86279446,2084.2,2083.0,4.51248286]
[1770514077120,0.86279446,2084.2,2083.0,8.87862907]
[1770514077325,0.86279446,2084.2,2083.1,8.63841907]
[1770514077520,0.86279446,2084.2,2083.2,4.36614621]
[1770514077725,0.86279446,2084.2,2083.1,4.27227286]
[1770514078025,0.86279446,2084.2,2083.2,4.27227286]
[1770514079232,0.86279446,2084.2,2083.3,4.27227286]
[1770514079535,0.86279446,2084.2,2083.3,8.63881859]
[1770514079734,0.86279446,2084.2,2083.4,4.36654573]
[1770514079934,0.86279446,2084.2,2083.3,4.27227286]
[1770514080530,0.86279446,2084.2,2083.3,8.64129029]
[1770514080733,0.86279446,2084.2,2083.4,4.36901743]
[1770514081036,0.86279446,2084.2,2083.3,4.27227286]
[1770514081332,0.86279446,2084.2,2083.4,8.64503239]
[1770514085237,0.86279446,2084.2,2083.5,4.37275953]
[1770514085436,0.86279446,2084.2,2083.6,4.37275953]
[1770514085639,0.85670431,2084.0,2083.3,4.27227286]
[1770514085939,0.85670431,2084.0,2083.2,4.27227286]
[1770514086137,0.85670431,2084.0,2083.2,8.65535745]
[1770514086639,0.86130508,2084.2,2083.2,8.65535745]
[1770514087236,0.86130508,2084.2,2083.3,4.38308459]
[1770514089734,0.86130508,2084.2,2083.3,8.65535745]
[1770514089940,0.86130508,2084.2,2083.4,4.38308459]
[1770514090138,0.86130508,2084.2,2083.3,4.27227286]
[1770514090338,0.86130508,2084.2,2083.4,4.38837868]
[1770514090640,0.86130508,2084.2,2083.3,4.27227286]
[1770514090841,0.86130508,2084.2,2083.3,8.65871303]
[1770514091842,0.86130508,2084.2,2083.4,4.38476193]
[1770514092044,0.86130508,2084.2,2083.3,4.27227286]
[1770514092244,0.86130508,2084.2,2083.3,8.65679848]
[1770514092446,0.86130508,2084.2,2083.4,4.38452562]
[1770514092646,0.86130508,2084.2,2083.2,4.27227286]
[1770514092834,0.86130508,2084.2,2083.3,4.3848824]
[1770514096352,0.86130508,2084.2,2083.4,8.65715526]
[1770514096549,0.86130508,2084.2,2083.5,4.3848824]
[1770514099160,0.00486053,2084.2,2083.6,4.3848824]
[1770514099556,0.8610146,2084.4,2083.6,4.3848824]
[1770514100661,0.86450896,2084.4,2083.6,8.65715526]
[1770514100855,0.86450896,2084.4,2083.7,4.3848824]
[1770514101563,0.00349436,2084.4,2083.7,4.3848824]
[1770514101755,0.00349436,2084.4,2083.7,8.65715526]
[1770514102861,0.86417448,2084.4,2083.7,8.65715526]
[1770514103461,0.86417448,2084.4,2083.6,4.27227286]
[1770514103661,0.86417448,2084.4,2083.7,4.38496078]
[1770514104366,0.00349436,2084.4,2083.7,8.65723364]
[1770514104560,5.75141902,2084.8,2083.8,4.38496078]
[1770514104765,1.16262525,2085.3,2084.2,4.27227286]
[1770514104766,0.86039047,2085.1,2084.2,4.27227286]
[1770514105065,0.86039047,2085.1,2084.2,8.65723364]
[1770514105260,0.86039047,2085.1,2084.1,5.69636381]
[1770514105261,0.86039047,2085.1,2084.1,4.27227286]
[1770514105466,0.86039047,2085.1,2084.1,9.57069355]
[1770514105665,0.86039047,2084.8,2084.1,8.65353404]
[1770514105966,0.86039047,2084.8,2084.2,4.37727467]
[1770514106262,0.86039047,2084.8,2084.1,0.00398651]
[1770514107867,0.86039047,2084.8,2084.1,2.85718561]
[1770514109869,0.86039047,2084.8,2084.1,7.22609785]